Workbook

Sheet HH Package 1
B2: IPL 2026 | Handheld Devices + Web | G2: 25 Cr Package
B3: Type | C3: Classification | D3: Ad Assets | E3: Targeting | F3: Duration (in Secs) | G3: Impressions -10s (Mn) / Total Exposures | H3: CPM-10s / Per Exp Cost (INR) | I3: Net Cost (INR Cr.)
B4: Live | C4: Video | D4: Mid-Roll / Pre-Roll | E4: ROS | F4: 10 | G4: 490 | H4: ='[1]HH Rate Card'!D4 -> 250 | I4: =G4*H4/10^4 -> 12.25
B5: Live | C5: Video | D5: Mid-Roll / Pre-Roll | E5: Targeted L1 | F5: 10 | G5: =G4*25% -> 122.5 | H5: ='[1]HH Rate Card'!D5 -> 315 | I5: 3.85875
B6: Highlights + VOD | C6: Video | D6: Mid-Roll / Pre-Roll | E6: ROS | F6: 10 | G6: =G4*10% -> 49 | H6: ='[1]HH Rate Card'!D12 -> 190 | I6: 0.931
B7: Display Asset | C7: Display | D7: Masthead (on CPM basis) | E7: ROS | F7: NA | G7: 500 | H7: ='[1]HH Rate Card'!D18 -> 75 | I7: 3.75
B8: Display Asset | C8: Display | D8: Fence / Frame / Social Banner | E8: ROS | F8: NA | G8: =G4*15% -> 73.5 | H8: ='[1]HH Rate Card'!D18 -> 75 | I8: 0.55125
B9: Live | C9: Display | D9: Squeezeups | E9: ROS | F9: NA | G9: =2*74 -> 148 | H9: ='[1]HH Rate Card'!D21 -> 250000 | I9: =G9*H9/10^7 -> 3.7
F10: Total Cost (Net) : INR Cr | I10: =SUM(I4:I9) -> 25.041
B12: Please Note:
B13: Taxes extra as applicable.
B14: This package is subject to BCCI / broadcast / streaming guidelines.
B15: Pre-Roll duration - upto 10 sec is allowed
B16: Secondage mentioned for FCT & number of exposures mentioned for graphical elements and segment
B17: Matches considered for Live entitlements, Days considered for PPL entitlements, Episodes considered for Surround Shows, etc.
B18: Matches count and PPL Days is subject to final schedule from Board / channel broadcast plan & the days / FCT may change accordingly
B19: No Spot placement request would be entertained
B20: Pushbacks/Squeezeups duration - Max 5 secs
B21: For regional channels, the commercial should be in the respective regional language
B22: Channel mix may change without prior notice
B23: ^ Indicative; Subject to Tournament Schedule; Total FCT/Exposures shall vary accordingly
B24: Segments / VODs are limited and hence available on a first come first serve basis only
B25: The Segment and VOD finalised for the advertiser has to be same
B26: Billing will be as per JioStar numbers only; 3rd party trackers should be placed only to track overall numbers
B27: All pricing/costs are Net to JioStar
B28: All the creatives as per specs have to be QC and S&P approved 5 business days in advance of going live
B29: Package is subject to ICC / JioStar guidelines
B30: Inventory in HLs / VODs is on non-exclusive basis
B31: The client understands and agrees that this deal cannot be cancelled either in full or part, at any given point of time from the confirmation time
B32: No per creative / per feed impression guarantee
B33: Segment Duration - 30-45 secs
B34: Segment can be bundled with Co Presenting level only that too if at least 2 platforms (out of HH, CTV, Linear TV) are bought together
B36: Guidelines:
B37: 1. CTL premium position to be offered at 25% higher than standard CTL rates.
B38: 2. HH Breakout Masthead will be offered at 10% higher than HH Regular Masthead rates on CPM.
B39: 3. PPL Mid Show inventory is only for certain PPL Partners, please check with PRS on availability
B40: 4. For generic SUPs a minimum of 14 matches need to be bought (which can be consecutive or all league matches of a franchise).
B41: 5. Impression dispersion to follow supply estimates.
B42: 6. Feasibility to be checked with Customization Team for all plans.
B43: 7. No match wise commitment
B44: 8. No geo specific impressions commitment within a cohort bought by the advertiser
B45: 9. Features should be augmented with 1:1 spends on video inventory, if features spends are below 20 Cr in Digital (HH+CTV).
B47: HH Guidelines:
B48: 1. For Playoffs buy, a total of minimum 5 matches to be bought
B49: 2. Key matches to be bought in consecutive manner
B50: - Key matches : 8 matches (Opening week 4 PT matches + 4 PO)

Sheet HH Package 2
B2: IPL 2026 | Handheld Devices + Web | G2: 40 Cr Package
B3: Type | C3: Classification | D3: Ad Assets | E3: Targeting | F3: Duration (in Secs) | G3: Impressions -10s (Mn) / Total Exposures | H3: CPM-10s / Per Exp Cost (INR) | I3: Net Cost (INR Cr.)
B4: Live | C4: Video | D4: Mid-Roll / Pre-Roll | E4: ROS | F4: 10 | G4: 835 | H4: ='[1]HH Rate Card'!D4 -> 250 | I4: =G4*H4/10^4 -> 20.875
B5: Live | C5: Video | D5: Mid-Roll / Pre-Roll | E5: Targeted L1 | F5: 10 | G5: =G4*25% -> 208.75 | H5: ='[1]HH Rate Card'!D5 -> 315 | I5: 6.575625
B6: Highlights + VOD | C6: Video | D6: Mid-Roll / Pre-Roll | E6: ROS | F6: 10 | G6: =G4*10% -> 83.5 | H6: ='[1]HH Rate Card'!D12 -> 190 | I6: 1.5865
B7: Display Asset | C7: Display | D7: Masthead (on CPM basis) | E7: ROS | F7: NA | G7: 600 | H7: ='[1]HH Rate Card'!D18 -> 75 | I7: 4.5
B8: Display Asset | C8: Display | D8: Fence / Frame / Social Banner | E8: ROS | F8: NA | G8: =G4*15% -> 125.25 | H8: ='[1]HH Rate Card'!D18 -> 75 | I8: 0.939375
B9: Live | C9: Display | D9: Squeezeups | E9: ROS | F9: NA | G9: =3*74 -> 222 | H9: ='[1]HH Rate Card'!D21 -> 250000 | I9: =G9*H9/10^7 -> 5.55
F10: Total Cost (Net) : INR Cr | I10: =SUM(I4:I9) -> 40.0265
B12: Please Note:
B13: Taxes extra as applicable.
B14: This package is subject to BCCI / broadcast / streaming guidelines.
B15: Pre-Roll duration - upto 10 sec is allowed
B16: Secondage mentioned for FCT & number of exposures mentioned for graphical elements and segment
B17: Matches considered for Live entitlements, Days considered for PPL entitlements, Episodes considered for Surround Shows, etc.
B18: Matches count and PPL Days is subject to final schedule from Board / channel broadcast plan & the days / FCT may change accordingly
B19: No Spot placement request would be entertained
B20: Pushbacks/Squeezeups duration - Max 5 secs
B21: For regional channels, the commercial should be in the respective regional language
B22: Channel mix may change without prior notice
B23: ^ Indicative; Subject to Tournament Schedule; Total FCT/Exposures shall vary accordingly
B24: Segments / VODs are limited and hence available on a first come first serve basis only
B25: The Segment and VOD finalised for the advertiser has to be same
B26: Billing will be as per JioStar numbers only; 3rd party trackers should be placed only to track overall numbers
B27: All pricing/costs are Net to JioStar
B28: All the creatives as per specs have to be QC and S&P approved 5 business days in advance of going live
B29: Package is subject to ICC / JioStar guidelines
B30: Inventory in HLs / VODs is on non-exclusive basis
B31: The client understands and agrees that this deal cannot be cancelled either in full or part, at any given point of time from the confirmation time
B32: No per creative / per feed impression guarantee
B33: Segment Duration - 30-45 secs
B34: Segment can be bundled with Co Presenting level only that too if at least 2 platforms (out of HH, CTV, Linear TV) are bought together
B36: Guidelines:
B37: 1. CTL premium position to be offered at 25% higher than standard CTL rates.
B38: 2. HH Breakout Masthead will be offered at 10% higher than HH Regular Masthead rates on CPM.
B39: 3. PPL Mid Show inventory is only for certain PPL Partners, please check with PRS on availability
B40: 4. For generic SUPs a minimum of 14 matches need to be bought (which can be consecutive or all league matches of a franchise).
B41: 5. Impression dispersion to follow supply estimates.
B42: 6. Feasibility to be checked with Customization Team for all plans.
B43: 7. No match wise commitment
B44: 8. No geo specific impressions commitment within a cohort bought by the advertiser
B45: 9. Features should be augmented with 1:1 spends on video inventory, if features spends are below 20 Cr in Digital (HH+CTV).
B47: HH Guidelines:
B48: 1. For Playoffs buy, a total of minimum 5 matches to be bought
B49: 2. Key matches to be bought in consecutive manner
B50: - Key matches : 8 matches (Opening week 4 PT matches + 4 PO)

Sheet HH Package 3
B2: IPL 2026 | Handheld Devices + Web | G2: 60 Cr Package
B3: Type | C3: Classification | D3: Ad Assets | E3: Targeting | F3: Duration (in Secs) | G3: Impressions -10s (Mn) / Total Exposures | H3: CPM-10s / Per Exp Cost (INR) | I3: Net Cost (INR Cr.)
B4: Live | C4: Video | D4: Mid-Roll / Pre-Roll | E4: ROS | F4: 10 | G4: 1370 | H4: ='[1]HH Rate Card'!D4 -> 250 | I4: =G4*H4/10^4 -> 34.25
B5: Live | C5: Video | D5: Mid-Roll / Pre-Roll | E5: Targeted L1 | F5: 10 | G5: =G4*25% -> 342.5 | H5: ='[1]HH Rate Card'!D5 -> 315 | I5: 10.78875
B6: Highlights + VOD | C6: Video | D6: Mid-Roll / Pre-Roll | E6: ROS | F6: 10 | G6: =G4*10% -> 137 | H6: ='[1]HH Rate Card'!D12 -> 190 | I6: 2.603
B7: Display Asset | C7: Display | D7: Masthead (on CPM basis) | E7: ROS | F7: NA | G7: 700 | H7: ='[1]HH Rate Card'!D18 -> 75 | I7: 5.25
B8: Display Asset | C8: Display | D8: Fence / Frame / Social Banner | E8: ROS | F8: NA | G8: =G4*15% -> 205.5 | H8: ='[1]HH Rate Card'!D18 -> 75 | I8: 1.54125
B9: Live | C9: Display | D9: Squeezeups | E9: ROS | F9: NA | G9: =3*74 -> 222 | H9: ='[1]HH Rate Card'!D21 -> 250000 | I9: =G9*H9/10^7 -> 5.55
F10: Total Cost (Net) : INR Cr | I10: =SUM(I4:I9) -> 59.983
B12: Please Note:
B13: Taxes extra as applicable.
B14: This package is subject to BCCI / broadcast / streaming guidelines.
B15: Pre-Roll duration - upto 10 sec is allowed
B16: Secondage mentioned for FCT & number of exposures mentioned for graphical elements and segment
B17: Matches considered for Live entitlements, Days considered for PPL entitlements, Episodes considered for Surround Shows, etc.
B18: Matches count and PPL Days is subject to final schedule from Board / channel broadcast plan & the days / FCT may change accordingly
B19: No Spot placement request would be entertained
B20: Pushbacks/Squeezeups duration - Max 5 secs
B21: For regional channels, the commercial should be in the respective regional language
B22: Channel mix may change without prior notice
B23: ^ Indicative; Subject to Tournament Schedule; Total FCT/Exposures shall vary accordingly
B24: Segments / VODs are limited and hence available on a first come first serve basis only
B25: The Segment and VOD finalised for the advertiser has to be same
B26: Billing will be as per JioStar numbers only; 3rd party trackers should be placed only to track overall numbers
B27: All pricing/costs are Net to JioStar
B28: All the creatives as per specs have to be QC and S&P approved 5 business days in advance of going live
B29: Package is subject to ICC / JioStar guidelines
B30: Inventory in HLs / VODs is on non-exclusive basis
B31: The client understands and agrees that this deal cannot be cancelled either in full or part, at any given point of time from the confirmation time
B32: No per creative / per feed impression guarantee
B33: Segment Duration - 30-45 secs
B34: Segment can be bundled with Co Presenting level only that too if at least 2 platforms (out of HH, CTV, Linear TV) are bought together
B36: Guidelines:
B37: 1. CTL premium position to be offered at 25% higher than standard CTL rates.
B38: 2. HH Breakout Masthead will be offered at 10% higher than HH Regular Masthead rates on CPM.
B39: 3. PPL Mid Show inventory is only for certain PPL Partners, please check with PRS on availability
B40: 4. For generic SUPs a minimum of 14 matches need to be bought (which can be consecutive or all league matches of a franchise).
B41: 5. Impression dispersion to follow supply estimates.
B42: 6. Feasibility to be checked with Customization Team for all plans.
B43: 7. No match wise commitment
B44: 8. No geo specific impressions commitment within a cohort bought by the advertiser
B45: 9. Features should be augmented with 1:1 spends on video inventory, if features spends are below 20 Cr in Digital (HH+CTV).
B47: HH Guidelines:
B48: 1. For Playoffs buy, a total of minimum 5 matches to be bought
B49: 2. Key matches to be bought in consecutive manner
B50: - Key matches : 8 matches (Opening week 4 PT matches + 4 PO)

Sheet HH Package 4
B2: IPL 2026 | Handheld Devices + Web | G2: 75 Cr Package
B3: Type | C3: Classification | D3: Ad Assets | E3: Targeting | F3: Duration (in Secs) | G3: Impressions -10s (Mn) / Total Exposures | H3: CPM-10s / Per Exp Cost (INR) | I3: Net Cost (INR Cr.)
B4: Live | C4: Video | D4: Mid-Roll / Pre-Roll | E4: ROS | F4: 10 | G4: 1658 | H4: ='[1]HH Rate Card'!D4 -> 250 | I4: =G4*H4/10^4 -> 41.45
B5: Live | C5: Video | D5: Mid-Roll / Pre-Roll | E5: Targeted L1 | F5: 10 | G5: =G4*25% -> 414.5 | H5: ='[1]HH Rate Card'!D5 -> 315 | I5: 13.05675
B6: Highlights + VOD | C6: Video | D6: Mid-Roll / Pre-Roll | E6: ROS | F6: 10 | G6: =G4*10% -> 165.8 | H6: ='[1]HH Rate Card'!D12 -> 190 | I6: 3.1502
B7: Display Asset | C7: Display | D7: Masthead (on CPM basis) | E7: ROS | F7: NA | G7: 1075 | H7: ='[1]HH Rate Card'!D18 -> 75 | I7: 8.0625
B8: Display Asset | C8: Display | D8: Fence / Frame / Social Banner | E8: ROS | F8: NA | G8: =G4*15% -> 248.7 | H8: ='[1]HH Rate Card'!D18 -> 75 | I8: 1.86525
B9: Live | C9: Display | D9: Squeezeups | E9: ROS | F9: NA | G9: =4*74 -> 296 | H9: ='[1]HH Rate Card'!D21 -> 250000 | I9: =G9*H9/10^7 -> 7.4
F10: Total Cost (Net) : INR Cr | I10: =SUM(I4:I9) -> 74.9847
B12: Please Note:
B13: Taxes extra as applicable.
B14: This package is subject to BCCI / broadcast / streaming guidelines.
B15: Pre-Roll duration - upto 10 sec is allowed
B16: Secondage mentioned for FCT & number of exposures mentioned for graphical elements and segment
B17: Matches considered for Live entitlements, Days considered for PPL entitlements, Episodes considered for Surround Shows, etc.
B18: Matches count and PPL Days is subject to final schedule from Board / channel broadcast plan & the days / FCT may change accordingly
B19: No Spot placement request would be entertained
B20: Pushbacks/Squeezeups duration - Max 5 secs
B21: For regional channels, the commercial should be in the respective regional language
B22: Channel mix may change without prior notice
B23: ^ Indicative; Subject to Tournament Schedule; Total FCT/Exposures shall vary accordingly
B24: Segments / VODs are limited and hence available on a first come first serve basis only
B25: The Segment and VOD finalised for the advertiser has to be same
B26: Billing will be as per JioStar numbers only; 3rd party trackers should be placed only to track overall numbers
B27: All pricing/costs are Net to JioStar
B28: All the creatives as per specs have to be QC and S&P approved 5 business days in advance of going live
B29: Package is subject to ICC / JioStar guidelines
B30: Inventory in HLs / VODs is on non-exclusive basis
B31: The client understands and agrees that this deal cannot be cancelled either in full or part, at any given point of time from the confirmation time
B32: No per creative / per feed impression guarantee
B33: Segment Duration - 30-45 secs
B34: Segment can be bundled with Co Presenting level only that too if at least 2 platforms (out of HH, CTV, Linear TV) are bought together
B36: Guidelines:
B37: 1. CTL premium position to be offered at 25% higher than standard CTL rates.
B38: 2. HH Breakout Masthead will be offered at 10% higher than HH Regular Masthead rates on CPM.
B39: 3. PPL Mid Show inventory is only for certain PPL Partners, please check with PRS on availability
B40: 4. For generic SUPs a minimum of 14 matches need to be bought (which can be consecutive or all league matches of a franchise).
B41: 5. Impression dispersion to follow supply estimates.
B42: 6. Feasibility to be checked with Customization Team for all plans.
B43: 7. No match wise commitment
B44: 8. No geo specific impressions commitment within a cohort bought by the advertiser
B45: 9. Features should be augmented with 1:1 spends on video inventory, if features spends are below 20 Cr in Digital (HH+CTV).
B47: HH Guidelines:
B48: 1. For Playoffs buy, a total of minimum 5 matches to be bought
B49: 2. Key matches to be bought in consecutive manner
B50: - Key matches : 8 matches (Opening week 4 PT matches + 4 PO)

Sheet HH Package 5
B2: IPL 2026 | Handheld Devices + Web | G2: 100 Cr Package
B3: Type | C3: Classification | D3: Ad Assets | E3: Targeting | F3: Duration (in Secs) | G3: Impressions -10s (Mn) / Total Exposures | H3: CPM-10s / Per Exp Cost (INR) | I3: Net Cost (INR Cr.)
B4: Live | C4: Video | D4: Mid-Roll / Pre-Roll | E4: ROS | F4: 10 | G4: 2355 | H4: ='[1]HH Rate Card'!D4 -> 250 | I4: =G4*H4/10^4 -> 58.875
B5: Live | C5: Video | D5: Mid-Roll / Pre-Roll | E5: Targeted L1 | F5: 10 | G5: =G4*25% -> 588.75 | H5: ='[1]HH Rate Card'!D5 -> 315 | I5: 18.545625
B6: Highlights + VOD | C6: Video | D6: Mid-Roll / Pre-Roll | E6: ROS | F6: 10 | G6: =G4*10% -> 235.5 | H6: ='[1]HH Rate Card'!D12 -> 190 | I6: 4.4745
B7: Display Asset | C7: Display | D7: Masthead (on CPM basis) | E7: ROS | F7: NA | G7: 1075 | H7: ='[1]HH Rate Card'!D18 -> 75 | I7: 8.0625
B8: Display Asset | C8: Display | D8: Fence / Frame / Social Banner | E8: ROS | F8: NA | G8: =G4*15% -> 353.25 | H8: ='[1]HH Rate Card'!D18 -> 75 | I8: 2.649375
B9: Live | C9: Display | D9: Squeezeups | E9: ROS | F9: NA | G9: =4*74 -> 296 | H9: ='[1]HH Rate Card'!D21 -> 250000 | I9: =G9*H9/10^7 -> 7.4
F10: Total Cost (Net) : INR Cr | I10: =SUM(I4:I9) -> 100.007
B12: Please Note:
B13: Taxes extra as applicable.
B14: This package is subject to BCCI / broadcast / streaming guidelines.
B15: Pre-Roll duration - upto 10 sec is allowed
B16: Secondage mentioned for FCT & number of exposures mentioned for graphical elements and segment
B17: Matches considered for Live entitlements, Days considered for PPL entitlements, Episodes considered for Surround Shows, etc.
B18: Matches count and PPL Days is subject to final schedule from Board / channel broadcast plan & the days / FCT may change accordingly
B19: No Spot placement request would be entertained
B20: Pushbacks/Squeezeups duration - Max 5 secs
B21: For regional channels, the commercial should be in the respective regional language
B22: Channel mix may change without prior notice
B23: ^ Indicative; Subject to Tournament Schedule; Total FCT/Exposures shall vary accordingly
B24: Segments / VODs are limited and hence available on a first come first serve basis only
B25: The Segment and VOD finalised for the advertiser has to be same
B26: Billing will be as per JioStar numbers only; 3rd party trackers should be placed only to track overall numbers
B27: All pricing/costs are Net to JioStar
B28: All the creatives as per specs have to be QC and S&P approved 5 business days in advance of going live
B29: Package is subject to ICC / JioStar guidelines
B30: Inventory in HLs / VODs is on non-exclusive basis
B31: The client understands and agrees that this deal cannot be cancelled either in full or part, at any given point of time from the confirmation time
B32: No per creative / per feed impression guarantee
B33: Segment Duration - 30-45 secs
B34: Segment can be bundled with Co Presenting level only that too if at least 2 platforms (out of HH, CTV, Linear TV) are bought together
B36: Guidelines:
B37: 1. CTL premium position to be offered at 25% higher than standard CTL rates.
B38: 2. HH Breakout Masthead will be offered at 10% higher than HH Regular Masthead rates on CPM.
B39: 3. PPL Mid Show inventory is only for certain PPL Partners, please check with PRS on availability
B40: 4. For generic SUPs a minimum of 14 matches need to be bought (which can be consecutive or all league matches of a franchise).
B41: 5. Impression dispersion to follow supply estimates.
B42: 6. Feasibility to be checked with Customization Team for all plans.
B43: 7. No match wise commitment
B44: 8. No geo specific impressions commitment within a cohort bought by the advertiser
B45: 9. Features should be augmented with 1:1 spends on video inventory, if features spends are below 20 Cr in Digital (HH+CTV).
B47: HH Guidelines:
B48: 1. For Playoffs buy, a total of minimum 5 matches to be bought
B49: 2. Key matches to be bought in consecutive manner
B50: - Key matches : 8 matches (Opening week 4 PT matches + 4 PO)

Sheet CTV 1
B2: IPL 2026 | Connected TV | G2: 60 Cr Package
B3: Type | C3: Classification | D3: Ad Assets | E3: Targeting | F3: Duration (in Secs) | G3: Impressions -10s (Mn) / Total Exposures | H3: CPM-10s / Per Exp Cost (INR) | I3: Net Cost (INR Cr.)
B4: Live | C4: Video | D4: Mid-Roll* | E4: ROS | F4: 10 | G4: =I4/H4*10^4 -> 835.6666667 | H4: ='[1]CTV Rate Card'!D4 -> 600 | I4: =I8-I6-I7 -> 50.14
B5: Live | C5: Video | D5: Pre-Roll | E5: ROS | F5: 10 | G5: =G4*3% -> 25.07 | H5: ='[1]CTV Rate Card'!D8 -> 800 | I5: =G5*H5/10^4 -> 2.0056
B6: Display Asset | C6: Display | D6: Masthead (on CPM basis) | E6: ROS | F6: NA | G6: 80 | H6: ='[1]CTV Rate Card'!D19 -> 400 | I6: 3.2
B7: Live | C7: Display | D7: Squeezeups | E7: ROS | F7: NA | G7: =2*74 -> 148 | H7: ='[1]CTV Rate Card'!D21 -> 450000 | I7: =G7*H7/10^7 -> 6.66
F8: Total Cost (Net) : INR Cr | I8: 60
B9: *For CTV, block match buy rates are used.
B11: Please Note:
B12: Taxes extra as applicable.
B13: This package is subject to BCCI / broadcast / streaming guidelines.
B14: Pre-Roll duration - upto 10 sec is allowed
B15: Secondage mentioned for FCT & number of exposures mentioned for graphical elements and segment
B16: Matches considered for Live entitlements, Days considered for PPL entitlements, Episodes considered for Surround Shows, etc.
B17: Matches count and PPL Days is subject to final schedule from Board / channel broadcast plan & the days / FCT may change accordingly
B18: No Spot placement request would be entertained
B19: Pushbacks/Squeezeups duration - Max 5 secs
B20: For regional channels, the commercial should be in the respective regional language
B21: Channel mix may change without prior notice
B22: ^ Indicative; Subject to Tournament Schedule; Total FCT/Exposures shall vary accordingly
B23: Segments / VODs are limited and hence available on a first come first serve basis only
B24: The Segment and VOD finalised for the advertiser has to be same
B25: Billing will be as per JioStar numbers only; 3rd party trackers should be placed only to track overall numbers
B26: All pricing/costs are Net to JioStar
B27: All the creatives as per specs have to be QC and S&P approved 5 business days in advance of going live
B28: Package is subject to ICC / JioStar guidelines
B29: Inventory in HLs / VODs is on non-exclusive basis
B30: The client understands and agrees that this deal cannot be cancelled either in full or part, at any given point of time from the confirmation time
B31: No per creative / per feed impression guarantee
B32: Segment Duration - 30-45 secs
B33: Segment can be bundled with Co Presenting level only that too if at least 2 platforms (out of HH, CTV, Linear TV) are bought together
B35: Guidelines:
B36: 1. CTL premium position to be offered at 25% higher than standard CTL rates.
B37: 2. PPL Mid Show inventory is only for certain PPL Partners, please check with PRS on availability
B38: 3. For generic SUPs a minimum of 14 matches need to be bought (which can be consecutive or all league matches of a franchise).
B39: 4. Impression dispersion to follow supply estimates.
B40: 5. Feasibility to be checked with Customization Team for all plans.
B41: 6. No match wise commitment
B42: 7. No geo specific impressions commitment within a cohort bought by the advertiser
B43: 8. Features should be augmented with 1:1 spends on video inventory, if features spends are below 20 Cr in Digital (HH+CTV).
B45: CTV Guidelines:
B47: CTV guidelines for block pricing applicability i.e. 600 CPM
B48: 1. Minimum 5 matches to be bought
B49: 2. Matches to be bought in minimum block size of 5 matches each
B50: - For e.g. 12 matches means 2 blocks, at 15, means 3 blocks & so on
B51: 3. Alternate matches can be bought on the condition that advertiser buys a min of 25 league matches in alternate manner
B53: CTV Other Guidelines
B54: 1. For any playoffs matches selection, a total of minimum 25 matches to be bought and last 15 has to be consecutive matches
B55: 2. For any Opening PT matches (total of 4 matches), a total of minimum 15 matches to be bought and first 10 has to be consecutive matches
B56: 3. Impressions dispersion to follow supply estimates
B58: CTV Live Preroll Guidelines
B59: 1. Standalone PR deals not allowed
B60: 2. Max 5% share of video impressions allowed on Live Preroll for Partners, and 3% for others ; at differential CPM as given above
B62: Match Selection scenarios | C62: # of Min req matches | D62: Consecutive Matches Rule | E62: Rest of Matches in Block of 5 matches | F62: Applicable Rate
B63: Any Matches (excl. Opening PT & POs) | C63: 5 | D63: 5 | E63: Yes | F63: 600
C64: 5 | D64: - | E64: - | F64: 900
B65: Any of Opening week PT matches | C65: 15 | D65: First 10 | E65: Yes | F65: 600
C66: 15 | D66: First 10 | E66: - | F66: 900
B67: Any of 4 POs | C67: 25 | D67: Last 15 | E67: Yes | F67: 600
C68: 25 | D68: Last 15 | E68: - | F68: 900
B69: Any of Opening week PT & Any of 4 POs | C69: 25 | D69: First 10 + Last 15 | E69: NA | F69: 600
B70: Any of Opening week PT & Any of 4 POs + Any other match | C70: 25 | D70: First 10 + Last 15 | E70: Yes | F70: 600
C71: 25 | D71: First 10 + Last 15 | E71: - | F71: 900
B72: Alternate league matches | C72: 25 | D72: NA | E72: NA | F72: 600
B74: NA - Not applicable

Sheet CTV 2
B2: IPL 2026 | Connected TV | G2: 75 Cr Package
B3: Type | C3: Classification | D3: Ad Assets | E3: Targeting | F3: Duration (in Secs) | G3: Impressions -10s (Mn) / Total Exposures | H3: CPM-10s / Per Exp Cost (INR) | I3: Net Cost (INR Cr.)
B4: Live | C4: Video | D4: Mid-Roll* | E4: ROS | F4: 10 | G4: =I4/H4*10^4 -> 1023.5 | H4: ='[1]CTV Rate Card'!D4 -> 600 | I4: =I8-I6-I7 -> 61.41
B5: Live | C5: Video | D5: Pre-Roll | E5: ROS | F5: 10 | G5: =G4*3% -> 30.705 | H5: ='[1]CTV Rate Card'!D8 -> 800 | I5: =G5*H5/10^4 -> 2.4564
B6: Display Asset | C6: Display | D6: Masthead (on CPM basis) | E6: ROS | F6: NA | G6: 90 | H6: ='[1]CTV Rate Card'!D19 -> 400 | I6: 3.6
B7: Live | C7: Display | D7: Squeezeups | E7: ROS | F7: NA | G7: =3*74 -> 222 | H7: ='[1]CTV Rate Card'!D21 -> 450000 | I7: =G7*H7/10^7 -> 9.99
F8: Total Cost (Net) : INR Cr | I8: 75
B9: *For CTV, block match buy rates are used.
B11: Please Note:
B12: Taxes extra as applicable.
B13: This package is subject to BCCI / broadcast / streaming guidelines.
B14: Pre-Roll duration - upto 10 sec is allowed
B15: Secondage mentioned for FCT & number of exposures mentioned for graphical elements and segment
B16: Matches considered for Live entitlements, Days considered for PPL entitlements, Episodes considered for Surround Shows, etc.
B17: Matches count and PPL Days is subject to final schedule from Board / channel broadcast plan & the days / FCT may change accordingly
B18: No Spot placement request would be entertained
B19: Pushbacks/Squeezeups duration - Max 5 secs
B20: For regional channels, the commercial should be in the respective regional language
B21: Channel mix may change without prior notice
B22: ^ Indicative; Subject to Tournament Schedule; Total FCT/Exposures shall vary accordingly
B23: Segments / VODs are limited and hence available on a first come first serve basis only
B24: The Segment and VOD finalised for the advertiser has to be same
B25: Billing will be as per JioStar numbers only; 3rd party trackers should be placed only to track overall numbers
B26: All pricing/costs are Net to JioStar
B27: All the creatives as per specs have to be QC and S&P approved 5 business days in advance of going live
B28: Package is subject to ICC / JioStar guidelines
B29: Inventory in HLs / VODs is on non-exclusive basis
B30: The client understands and agrees that this deal cannot be cancelled either in full or part, at any given point of time from the confirmation time
B31: No per creative / per feed impression guarantee
B32: Segment Duration - 30-45 secs
B33: Segment can be bundled with Co Presenting level only that too if at least 2 platforms (out of HH, CTV, Linear TV) are bought together
B35: Guidelines:
B36: 1. CTL premium position to be offered at 25% higher than standard CTL rates.
B37: 2. PPL Mid Show inventory is only for certain PPL Partners, please check with PRS on availability
B38: 3. For generic SUPs a minimum of 14 matches need to be bought (which can be consecutive or all league matches of a franchise).
B39: 4. Impression dispersion to follow supply estimates.
B40: 5. Feasibility to be checked with Customization Team for all plans.
B41: 6. No match wise commitment
B42: 7. No geo specific impressions commitment within a cohort bought by the advertiser
B43: 8. Features should be augmented with 1:1 spends on video inventory, if features spends are below 20 Cr in Digital (HH+CTV).
B45: CTV Guidelines:
B47: CTV guidelines for block pricing applicability i.e. 600 CPM
B48: 1. Minimum 5 matches to be bought
B49: 2. Matches to be bought in minimum block size of 5 matches each
B50: - For e.g. 12 matches means 2 blocks, at 15, means 3 blocks & so on
B51: 3. Alternate matches can be bought on the condition that advertiser buys a min of 25 league matches in alternate manner
B53: CTV Other Guidelines
B54: 1. For any playoffs matches selection, a total of minimum 25 matches to be bought and last 15 has to be consecutive matches
B55: 2. For any Opening PT matches (total of 4 matches), a total of minimum 15 matches to be bought and first 10 has to be consecutive matches
B56: 3. Impressions dispersion to follow supply estimates
B58: CTV Live Preroll Guidelines
B59: 1. Standalone PR deals not allowed
B60: 2. Max 5% share of video impressions allowed on Live Preroll for Partners, and 3% for others ; at differential CPM as given above
B62: Match Selection scenarios | C62: # of Min req matches | D62: Consecutive Matches Rule | E62: Rest of Matches in Block of 5 matches | F62: Applicable Rate
B63: Any Matches (excl. Opening PT & POs) | C63: 5 | D63: 5 | E63: Yes | F63: 600
C64: 5 | D64: - | E64: - | F64: 900
B65: Any of Opening week PT matches | C65: 15 | D65: First 10 | E65: Yes | F65: 600
C66: 15 | D66: First 10 | E66: - | F66: 900
B67: Any of 4 POs | C67: 25 | D67: Last 15 | E67: Yes | F67: 600
C68: 25 | D68: Last 15 | E68: - | F68: 900
B69: Any of Opening week PT & Any of 4 POs | C69: 25 | D69: First 10 + Last 15 | E69: NA | F69: 600
B70: Any of Opening week PT & Any of 4 POs + Any other match | C70: 25 | D70: First 10 + Last 15 | E70: Yes | F70: 600
C71: 25 | D71: First 10 + Last 15 | E71: - | F71: 900
B72: Alternate league matches | C72: 25 | D72: NA | E72: NA | F72: 600
B74: NA - Not applicable

Sheet CTV3
B2: IPL 2026 | Connected TV | G2: 100 Cr Package
B3: Type | C3: Classification | D3: Ad Assets | E3: Targeting | F3: Duration (in Secs) | G3: Impressions -10s (Mn) / Total Exposures | H3: CPM-10s / Per Exp Cost (INR) | I3: Net Cost (INR Cr.)
B4: Live | C4: Video | D4: Mid-Roll* | E4: ROS | F4: 10 | G4: =I4/H4*10^4 -> 1420.166667 | H4: ='[1]CTV Rate Card'!D4 -> 600 | I4: =I8-I6-I7 -> 85.21
B5: Live | C5: Video | D5: Pre-Roll | E5: ROS | F5: 10 | G5: =G4*3% -> 42.605 | H5: ='[1]CTV Rate Card'!D8 -> 800 | I5: =G5*H5/10^4 -> 3.4084
B6: Display Asset | C6: Display | D6: Masthead (on CPM basis) | E6: ROS | F6: NA | G6: 120 | H6: ='[1]CTV Rate Card'!D19 -> 400 | I6: 4.8
B7: Live | C7: Display | D7: Squeezeups | E7: ROS | F7: NA | G7: =3*74 -> 222 | H7: ='[1]CTV Rate Card'!D21 -> 450000 | I7: =G7*H7/10^7 -> 9.99
F8: Total Cost (Net) : INR Cr | I8: 100
B9: *For CTV, block match buy rates are used.
B11: Please Note:
B12: Taxes extra as applicable.
B13: This package is subject to BCCI / broadcast / streaming guidelines.
B14: Pre-Roll duration - upto 10 sec is allowed
B15: Secondage mentioned for FCT & number of exposures mentioned for graphical elements and segment
B16: Matches considered for Live entitlements, Days considered for PPL entitlements, Episodes considered for Surround Shows, etc.
B17: Matches count and PPL Days is subject to final schedule from Board / channel broadcast plan & the days / FCT may change accordingly
B18: No Spot placement request would be entertained
B19: Pushbacks/Squeezeups duration - Max 5 secs
B20: For regional channels, the commercial should be in the respective regional language
B21: Channel mix may change without prior notice
B22: ^ Indicative; Subject to Tournament Schedule; Total FCT/Exposures shall vary accordingly
B23: Segments / VODs are limited and hence available on a first come first serve basis only
B24: The Segment and VOD finalised for the advertiser has to be same
B25: Billing will be as per JioStar numbers only; 3rd party trackers should be placed only to track overall numbers
B26: All pricing/costs are Net to JioStar
B27: All the creatives as per specs have to be QC and S&P approved 5 business days in advance of going live
B28: Package is subject to ICC / JioStar guidelines
B29: Inventory in HLs / VODs is on non-exclusive basis
B30: The client understands and agrees that this deal cannot be cancelled either in full or part, at any given point of time from the confirmation time
B31: No per creative / per feed impression guarantee
B32: Segment Duration - 30-45 secs
B33: Segment can be bundled with Co Presenting level only that too if at least 2 platforms (out of HH, CTV, Linear TV) are bought together
B35: Guidelines:
B36: 1. CTL premium position to be offered at 25% higher than standard CTL rates.
B37: 2. PPL Mid Show inventory is only for certain PPL Partners, please check with PRS on availability
B38: 3. For generic SUPs a minimum of 14 matches need to be bought (which can be consecutive or all league matches of a franchise).
B39: 4. Impression dispersion to follow supply estimates.
B40: 5. Feasibility to be checked with Customization Team for all plans.
B41: 6. No match wise commitment
B42: 7. No geo specific impressions commitment within a cohort bought by the advertiser
B43: 8. Features should be augmented with 1:1 spends on video inventory, if features spends are below 20 Cr in Digital (HH+CTV).
B45: CTV Guidelines:
B47: CTV guidelines for block pricing applicability i.e. 600 CPM
B48: 1. Minimum 5 matches to be bought
B49: 2. Matches to be bought in minimum block size of 5 matches each
B50: - For e.g. 12 matches means 2 blocks, at 15, means 3 blocks & so on
B51: 3. Alternate matches can be bought on the condition that advertiser buys a min of 25 league matches in alternate manner
B53: CTV Other Guidelines
B54: 1. For any playoffs matches selection, a total of minimum 25 matches to be bought and last 15 has to be consecutive matches
B55: 2. For any Opening PT matches (total of 4 matches), a total of minimum 15 matches to be bought and first 10 has to be consecutive matches
B56: 3. Impressions dispersion to follow supply estimates
B58: CTV Live Preroll Guidelines
B59: 1. Standalone PR deals not allowed
B60: 2. Max 5% share of video impressions allowed on Live Preroll for Partners, and 3% for others ; at differential CPM as given above
B62: Match Selection scenarios | C62: # of Min req matches | D62: Consecutive Matches Rule | E62: Rest of Matches in Block of 5 matches | F62: Applicable Rate
B63: Any Matches (excl. Opening PT & POs) | C63: 5 | D63: 5 | E63: Yes | F63: 600
C64: 5 | D64: - | E64: - | F64: 900
B65: Any of Opening week PT matches | C65: 15 | D65: First 10 | E65: Yes | F65: 600
C66: 15 | D66: First 10 | E66: - | F66: 900
B67: Any of 4 POs | C67: 25 | D67: Last 15 | E67: Yes | F67: 600
C68: 25 | D68: Last 15 | E68: - | F68: 900
B69: Any of Opening week PT & Any of 4 POs | C69: 25 | D69: First 10 + Last 15 | E69: NA | F69: 600
B70: Any of Opening week PT & Any of 4 POs + Any other match | C70: 25 | D70: First 10 + Last 15 | E70: Yes | F70: 600
C71: 25 | D71: First 10 + Last 15 | E71: - | F71: 900
B72: Alternate league matches | C72: 25 | D72: NA | E72: NA | F72: 600
B74: NA - Not applicable

Sheet CTV4
B2: IPL 2026 | Connected TV | G2: 120 Cr Package
B3: Type | C3: Classification | D3: Ad Assets | E3: Targeting | F3: Duration (in Secs) | G3: Impressions -10s (Mn) / Total Exposures | H3: CPM-10s / Per Exp Cost (INR) | I3: Net Cost (INR Cr.)
B4: Live | C4: Video | D4: Mid-Roll* | E4: ROS | F4: 10 | G4: =I4/H4*10^4 -> 1678 | H4: ='[1]CTV Rate Card'!D4 -> 600 | I4: =I8-I6-I7 -> 100.68
B5: Live | C5: Video | D5: Pre-Roll | E5: ROS | F5: 10 | G5: =G4*3% -> 50.34 | H5: ='[1]CTV Rate Card'!D8 -> 800 | I5: =G5*H5/10^4 -> 4.0272
B6: Display Asset | C6: Display | D6: Masthead (on CPM basis) | E6: ROS | F6: NA | G6: 150 | H6: ='[1]CTV Rate Card'!D19 -> 400 | I6: 6
B7: Live | C7: Display | D7: Squeezeups | E7: ROS | F7: NA | G7: =4*74 -> 296 | H7: ='[1]CTV Rate Card'!D21 -> 450000 | I7: =G7*H7/10^7 -> 13.32
F8: Total Cost (Net) : INR Cr | I8: 120
B9: *For CTV, block match buy rates are used.
B11: Please Note:
B12: Taxes extra as applicable.
B13: This package is subject to BCCI / broadcast / streaming guidelines.
B14: Pre-Roll duration - upto 10 sec is allowed
B15: Secondage mentioned for FCT & number of exposures mentioned for graphical elements and segment
B16: Matches considered for Live entitlements, Days considered for PPL entitlements, Episodes considered for Surround Shows, etc.
B17: Matches count and PPL Days is subject to final schedule from Board / channel broadcast plan & the days / FCT may change accordingly
B18: No Spot placement request would be entertained
B19: Pushbacks/Squeezeups duration - Max 5 secs
B20: For regional channels, the commercial should be in the respective regional language
B21: Channel mix may change without prior notice
B22: ^ Indicative; Subject to Tournament Schedule; Total FCT/Exposures shall vary accordingly
B23: Segments / VODs are limited and hence available on a first come first serve basis only
B24: The Segment and VOD finalised for the advertiser has to be same
B25: Billing will be as per JioStar numbers only; 3rd party trackers should be placed only to track overall numbers
B26: All pricing/costs are Net to JioStar
B27: All the creatives as per specs have to be QC and S&P approved 5 business days in advance of going live
B28: Package is subject to ICC / JioStar guidelines
B29: Inventory in HLs / VODs is on non-exclusive basis
B30: The client understands and agrees that this deal cannot be cancelled either in full or part, at any given point of time from the confirmation time
B31: No per creative / per feed impression guarantee
B32: Segment Duration - 30-45 secs
B33: Segment can be bundled with Co Presenting level only that too if at least 2 platforms (out of HH, CTV, Linear TV) are bought together
B35: Guidelines:
B36: 1. CTL premium position to be offered at 25% higher than standard CTL rates.
B37: 2. PPL Mid Show inventory is only for certain PPL Partners, please check with PRS on availability
B38: 3. For generic SUPs a minimum of 14 matches need to be bought (which can be consecutive or all league matches of a franchise).
B39: 4. Impression dispersion to follow supply estimates.
B40: 5. Feasibility to be checked with Customization Team for all plans.
B41: 6. No match wise commitment
B42: 7. No geo specific impressions commitment within a cohort bought by the advertiser
B43: 8. Features should be augmented with 1:1 spends on video inventory, if features spends are below 20 Cr in Digital (HH+CTV).
B45: CTV Guidelines:
B47: CTV guidelines for block pricing applicability i.e. 600 CPM
B48: 1. Minimum 5 matches to be bought
B49: 2. Matches to be bought in minimum block size of 5 matches each
B50: - For e.g. 12 matches means 2 blocks, at 15, means 3 blocks & so on
B51: 3. Alternate matches can be bought on the condition that advertiser buys a min of 25 league matches in alternate manner
B53: CTV Other Guidelines
B54: 1. For any playoffs matches selection, a total of minimum 25 matches to be bought and last 15 has to be consecutive matches
B55: 2. For any Opening PT matches (total of 4 matches), a total of minimum 15 matches to be bought and first 10 has to be consecutive matches
B56: 3. Impressions dispersion to follow supply estimates
B58: CTV Live Preroll Guidelines
B59: 1. Standalone PR deals not allowed
B60: 2. Max 5% share of video impressions allowed on Live Preroll for Partners, and 3% for others ; at differential CPM as given above
B62: Match Selection scenarios | C62: # of Min req matches | D62: Consecutive Matches Rule | E62: Rest of Matches in Block of 5 matches | F62: Applicable Rate
B63: Any Matches (excl. Opening PT & POs) | C63: 5 | D63: 5 | E63: Yes | F63: 600
C64: 5 | D64: - | E64: - | F64: 900
B65: Any of Opening week PT matches | C65: 15 | D65: First 10 | E65: Yes | F65: 600
C66: 15 | D66: First 10 | E66: - | F66: 900
B67: Any of 4 POs | C67: 25 | D67: Last 15 | E67: Yes | F67: 600
C68: 25 | D68: Last 15 | E68: - | F68: 900
B69: Any of Opening week PT & Any of 4 POs | C69: 25 | D69: First 10 + Last 15 | E69: NA | F69: 600
B70: Any of Opening week PT & Any of 4 POs + Any other match | C70: 25 | D70: First 10 + Last 15 | E70: Yes | F70: 600
C71: 25 | D71: First 10 + Last 15 | E71: - | F71: 900
B72: Alternate league matches | C72: 25 | D72: NA | E72: NA | F72: 600
B74: NA - Not applicable

Sheet CTV5
B2: IPL 2026 | Connected TV | G2: 150 Cr Package
B3: Type | C3: Classification | D3: Ad Assets | E3: Targeting | F3: Duration (in Secs) | G3: Impressions -10s (Mn) / Total Exposures | H3: CPM-10s / Per Exp Cost (INR) | I3: Net Cost (INR Cr.)
B4: Live | C4: Video | D4: Mid-Roll* | E4: ROS | F4: 10 | G4: =I4/H4*10^4 -> 2178 | H4: ='[1]CTV Rate Card'!D4 -> 600 | I4: =I8-I6-I7 -> 130.68
B5: Live | C5: Video | D5: Pre-Roll | E5: ROS | F5: 10 | G5: =G4*3% -> 65.34 | H5: ='[1]CTV Rate Card'!D8 -> 800 | I5: =G5*H5/10^4 -> 5.2272
B6: Display Asset | C6: Display | D6: Masthead (on CPM basis) | E6: ROS | F6: NA | G6: 150 | H6: ='[1]CTV Rate Card'!D19 -> 400 | I6: 6
B7: Live | C7: Display | D7: Squeezeups | E7: ROS | F7: NA | G7: =4*74 -> 296 | H7: ='[1]CTV Rate Card'!D21 -> 450000 | I7: =G7*H7/10^7 -> 13.32
F8: Total Cost (Net) : INR Cr | I8: 150
B9: *For CTV, block match buy rates are used.
B11: Please Note:
B12: Taxes extra as applicable.
B13: This package is subject to BCCI / broadcast / streaming guidelines.
B14: Pre-Roll duration - upto 10 sec is allowed
B15: Secondage mentioned for FCT & number of exposures mentioned for graphical elements and segment
B16: Matches considered for Live entitlements, Days considered for PPL entitlements, Episodes considered for Surround Shows, etc.
B17: Matches count and PPL Days is subject to final schedule from Board / channel broadcast plan & the days / FCT may change accordingly
B18: No Spot placement request would be entertained
B19: Pushbacks/Squeezeups duration - Max 5 secs
B20: For regional channels, the commercial should be in the respective regional language
B21: Channel mix may change without prior notice
B22: ^ Indicative; Subject to Tournament Schedule; Total FCT/Exposures shall vary accordingly
B23: Segments / VODs are limited and hence available on a first come first serve basis only
B24: The Segment and VOD finalised for the advertiser has to be same
B25: Billing will be as per JioStar numbers only; 3rd party trackers should be placed only to track overall numbers
B26: All pricing/costs are Net to JioStar
B27: All the creatives as per specs have to be QC and S&P approved 5 business days in advance of going live
B28: Package is subject to ICC / JioStar guidelines
B29: Inventory in HLs / VODs is on non-exclusive basis
B30: The client understands and agrees that this deal cannot be cancelled either in full or part, at any given point of time from the confirmation time
B31: No per creative / per feed impression guarantee
B32: Segment Duration - 30-45 secs
B33: Segment can be bundled with Co Presenting level only that too if at least 2 platforms (out of HH, CTV, Linear TV) are bought together
B35: Guidelines:
B36: 1. CTL premium position to be offered at 25% higher than standard CTL rates.
B37: 2. PPL Mid Show inventory is only for certain PPL Partners, please check with PRS on availability
B38: 3. For generic SUPs a minimum of 14 matches need to be bought (which can be consecutive or all league matches of a franchise).
B39: 4. Impression dispersion to follow supply estimates.
B40: 5. Feasibility to be checked with Customization Team for all plans.
B41: 6. No match wise commitment
B42: 7. No geo specific impressions commitment within a cohort bought by the advertiser
B43: 8. Features should be augmented with 1:1 spends on video inventory, if features spends are below 20 Cr in Digital (HH+CTV).
B45: CTV Guidelines:
B47: CTV guidelines for block pricing applicability i.e. 600 CPM
B48: 1. Minimum 5 matches to be bought
B49: 2. Matches to be bought in minimum block size of 5 matches each
B50: - For e.g. 12 matches means 2 blocks, at 15, means 3 blocks & so on
B51: 3. Alternate matches can be bought on the condition that advertiser buys a min of 25 league matches in alternate manner
B53: CTV Other Guidelines
B54: 1. For any playoffs matches selection, a total of minimum 25 matches to be bought and last 15 has to be consecutive matches
B55: 2. For any Opening PT matches (total of 4 matches), a total of minimum 15 matches to be bought and first 10 has to be consecutive matches
B56: 3. Impressions dispersion to follow supply estimates
B58: CTV Live Preroll Guidelines
B59: 1. Standalone PR deals not allowed
B60: 2. Max 5% share of video impressions allowed on Live Preroll for Partners, and 3% for others ; at differential CPM as given above
B62: Match Selection scenarios | C62: # of Min req matches | D62: Consecutive Matches Rule | E62: Rest of Matches in Block of 5 matches | F62: Applicable Rate
B63: Any Matches (excl. Opening PT & POs) | C63: 5 | D63: 5 | E63: Yes | F63: 600
C64: 5 | D64: - | E64: - | F64: 900
B65: Any of Opening week PT matches | C65: 15 | D65: First 10 | E65: Yes | F65: 600
C66: 15 | D66: First 10 | E66: - | F66: 900
B67: Any of 4 POs | C67: 25 | D67: Last 15 | E67: Yes | F67: 600
C68: 25 | D68: Last 15 | E68: - | F68: 900
B69: Any of Opening week PT & Any of 4 POs | C69: 25 | D69: First 10 + Last 15 | E69: NA | F69: 600
B70: Any of Opening week PT & Any of 4 POs + Any other match | C70: 25 | D70: First 10 + Last 15 | E70: Yes | F70: 600
C71: 25 | D71: First 10 + Last 15 | E71: - | F71: 900
B72: Alternate league matches | C72: 25 | D72: NA | E72: NA | F72: 600
B74: NA - Not applicable
